[Event "Late-Titled-Tuesday-Blitz-May-07-2024"]
[Site "Chess.com"]
[Date "2024.05.07"]
[Round "8"]
[White "jcibarra"]
[Black "LikeWater"]
[Result "0-1"]
[WhiteElo "2919"]
[BlackElo "2722"]
[TimeControl "180+1"]
[EndTime "15:27:43 PDT"]
[Termination "LikeWater won by resignation"]

1. e4 {[%clk 0:02:58.1]} 1... e5 {[%clk 0:02:59.5]} 2. Nf3 {[%clk 0:02:57.7]}
2... d6 {[%clk 0:02:59.8]} 3. d4 {[%clk 0:02:57.9]} 3... exd4 {[%clk 0:03:00.7]}
4. Nxd4 {[%clk 0:02:57.8]} 4... Nf6 {[%clk 0:03:01.2]} 5. Nc3 {[%clk 0:02:58.2]}
5... Be7 {[%clk 0:03:01.7]} 6. g3 {[%clk 0:02:58.3]} 6... O-O {[%clk 0:03:01.7]}
7. Bg2 {[%clk 0:02:58.4]} 7... c6 {[%clk 0:03:02.4]} 8. O-O {[%clk 0:02:58.4]}
8... Na6 {[%clk 0:03:02.9]} 9. h3 {[%clk 0:02:56.6]} 9... Nc5 {[%clk 0:03:02.7]}
10. Re1 {[%clk 0:02:54]} 10... a5 {[%clk 0:03:02.5]} 11. g4 {[%clk 0:02:51.6]}
11... Re8 {[%clk 0:02:54.2]} 12. g5 {[%clk 0:02:49.9]} 12... Nfd7 {[%clk
0:02:54.3]} 13. f4 {[%clk 0:02:50.5]} 13... Nb6 {[%clk 0:02:46]} 14. b3 {[%clk
0:02:44.2]} 14... a4 {[%clk 0:02:29]} 15. Be3 {[%clk 0:02:43]} 15... d5 {[%clk
0:02:21.4]} 16. e5 {[%clk 0:02:16.5]} 16... Ne6 {[%clk 0:01:55.6]} 17. Nde2
{[%clk 0:01:55.5]} 17... Bb4 {[%clk 0:01:52.8]} 18. Bf2 {[%clk 0:01:31.9]} 18...
Nxf4 {[%clk 0:01:25.6]} 19. Rf1 {[%clk 0:01:06.6]} 19... Nxg2 {[%clk 0:01:13.3]}
20. Kxg2 {[%clk 0:01:04.8]} 20... Qxg5+ {[%clk 0:01:13.3]} 21. Kh1 {[%clk
0:00:53.2]} 21... Bxh3 {[%clk 0:01:12.1]} 22. Rg1 {[%clk 0:00:48.3]} 22... Qh6
{[%clk 0:01:12.2]} 23. Qc1 {[%clk 0:00:40.6]} 23... Qh5 {[%clk 0:01:03.6]} 24.
Qg5 {[%clk 0:00:22.2]} 24... Bg2+ {[%clk 0:01:03.6]} 25. Kxg2 {[%clk 0:00:06.1]}
25... Qxg5+ {[%clk 0:01:03.7]} 26. Kf1 {[%clk 0:00:06.9]} 26... Qxe5 {[%clk
0:01:00.8]} 27. Bd4 {[%clk 0:00:07]} 27... Qf5+ {[%clk 0:01:00.8]} 0-1

[Event "Late-Titled-Tuesday-Blitz-May-07-2024"]
[Site "Chess.com"]
[Date "2024.05.07"]
[Round "8"]
[White "rionelG"]
[Black "merinasian"]
[Result "0-1"]
[WhiteElo "2285"]
[BlackElo "2467"]
[TimeControl "180+1"]
[EndTime "15:27:48 PDT"]
[Termination "merinasian won by resignation"]

1. e4 {[%clk 0:03:00.9]} 1... d6 {[%clk 0:03:00.9]} 2. d4 {[%clk 0:02:58.9]}
2... Nd7 {[%clk 0:03:01.8]} 3. c4 {[%clk 0:02:54.4]} 3... g6 {[%clk 0:03:02.7]}
4. Nc3 {[%clk 0:02:54.4]} 4... Bg7 {[%clk 0:03:03.6]} 5. Be2 {[%clk 0:02:52.4]}
5... e5 {[%clk 0:03:03.7]} 6. d5 {[%clk 0:02:52.1]} 6... Ne7 {[%clk 0:03:03.6]}
7. Be3 {[%clk 0:02:51.6]} 7... O-O {[%clk 0:03:04]} 8. g4 {[%clk 0:02:52.2]}
8... f5 {[%clk 0:03:04.3]} 9. gxf5 {[%clk 0:02:52.4]} 9... gxf5 {[%clk
0:03:05.2]} 10. f3 {[%clk 0:02:48.6]} 10... fxe4 {[%clk 0:03:01.9]} 11. fxe4
{[%clk 0:02:47.5]} 11... Ng6 {[%clk 0:03:01]} 12. Nf3 {[%clk 0:02:42]} 12... Nf6
{[%clk 0:03:00.5]} 13. Qd2 {[%clk 0:02:23.9]} 13... Ng4 {[%clk 0:02:59.7]} 14.
Bg5 {[%clk 0:02:14.5]} 14... Bf6 {[%clk 0:02:59.5]} 15. Bxf6 {[%clk 0:02:00.2]}
15... Qxf6 {[%clk 0:03:00.4]} 16. h3 {[%clk 0:01:47.3]} 16... Nh4 {[%clk
0:02:45.3]} 17. hxg4 {[%clk 0:01:17.2]} 17... Nxf3+ {[%clk 0:02:44.9]} 18. Bxf3
{[%clk 0:01:17.2]} 18... Qxf3 {[%clk 0:02:45.8]} 19. Qh2 {[%clk 0:01:17.4]}
19... Rf7 {[%clk 0:02:42.3]} 20. Kd2 {[%clk 0:01:11.8]} 20... Bxg4 {[%clk
0:02:40.1]} 21. Raf1 {[%clk 0:01:02.4]} 21... Qxf1 {[%clk 0:02:39.5]} 22. Rxf1
{[%clk 0:01:02.6]} 22... Rxf1 {[%clk 0:02:39.8]} 23. Qg2 {[%clk 0:01:03.1]}
23... Rf4 {[%clk 0:02:39.9]} 24. Ne2 {[%clk 0:01:01.7]} 24... Raf8 {[%clk
0:02:35.7]} 25. Nxf4 {[%clk 0:01:01.5]} 25... Rxf4 {[%clk 0:02:36.3]} 26. Qg3
{[%clk 0:00:50]} 26... Rxe4 {[%clk 0:02:35]} 27. Qh4 {[%clk 0:00:48.6]} 27...
Rxc4 {[%clk 0:02:33]} 28. Qd8+ {[%clk 0:00:41]} 28... Kf7 {[%clk 0:02:31.8]} 29.
Qh8 {[%clk 0:00:24.5]} 29... Bf5 {[%clk 0:02:30.7]} 30. Qb8 {[%clk 0:00:18.9]}
30... b6 {[%clk 0:02:27.3]} 31. Qxa7 {[%clk 0:00:17]} 31... Rc5 {[%clk
0:02:26.3]} 32. Ke3 {[%clk 0:00:14.9]} 32... h5 {[%clk 0:02:26.4]} 33. Qb8
{[%clk 0:00:13]} 33... h4 {[%clk 0:02:25.9]} 34. Qh8 {[%clk 0:00:13.2]} 34... h3
{[%clk 0:02:26]} 35. Qh5+ {[%clk 0:00:12.7]} 35... Kf6 {[%clk 0:02:25.2]} 36.
Qh6+ {[%clk 0:00:11.3]} 36... Bg6 {[%clk 0:02:22.4]} 37. Qxh3 {[%clk 0:00:09.9]}
37... Rxd5 {[%clk 0:02:23.3]} 38. Qh4+ {[%clk 0:00:07.6]} 38... Ke6 {[%clk
0:02:22]} 39. Qc4 {[%clk 0:00:03.4]} 39... c5 {[%clk 0:02:17.7]} 40. Qb5 {[%clk
0:00:01.7]} 40... Rd3+ {[%clk 0:02:17.2]} 41. Ke2 {[%clk 0:00:01.6]} 41... e4
{[%clk 0:02:06.3]} 42. Qxb6 {[%clk 0:00:01.6]} 42... Ke5 {[%clk 0:02:06.3]} 43.
Qd8 {[%clk 0:00:01.3]} 43... Bh5+ {[%clk 0:02:06.2]} 44. Kf2 {[%clk 0:00:01.1]}
44... Bf3 {[%clk 0:02:05.5]} 45. Qe7+ {[%clk 0:00:00.2]} 45... Kd5 {[%clk
0:02:05.1]} 46. Qg7 {[%clk 0:00:00.5]} 46... Kc4 {[%clk 0:02:02.9]} 47. Qe5
{[%clk 0:00:00.4]} 47... dxe5 {[%clk 0:02:02.5]} 48. b3+ {[%clk 0:00:00.6]}
48... Kc3 {[%clk 0:02:02.3]} 49. Kg3 {[%clk 0:00:01.4]} 49... Rd2 {[%clk
0:02:00.6]} 0-1

[Event "Late-Titled-Tuesday-Blitz-May-07-2024"]
[Site "Chess.com"]
[Date "2024.05.07"]
[Round "8"]
[White "Mischuk_D"]
[Black "cristianserban1"]
[Result "1-0"]
[WhiteElo "2808"]
[BlackElo "2638"]
[TimeControl "180+1"]
[EndTime "15:27:50 PDT"]
[Termination "Mischuk_D won on time"]

1. d4 {[%clk 0:03:00.9]} 1... Nf6 {[%clk 0:02:59.3]} 2. c4 {[%clk 0:03:00.7]}
2... e6 {[%clk 0:02:59.7]} 3. g3 {[%clk 0:03:00.6]} 3... d5 {[%clk 0:02:59.8]}
4. Bg2 {[%clk 0:03:00.6]} 4... dxc4 {[%clk 0:02:59.1]} 5. Qa4+ {[%clk
0:03:00.4]} 5... Nbd7 {[%clk 0:02:43]} 6. Qxc4 {[%clk 0:03:00.3]} 6... a6 {[%clk
0:02:43.3]} 7. Be3 {[%clk 0:02:58.7]} 7... b5 {[%clk 0:02:41.9]} 8. Qc1 {[%clk
0:02:44.6]} 8... Rb8 {[%clk 0:02:25.7]} 9. Nd2 {[%clk 0:02:44]} 9... Bb7 {[%clk
0:02:09]} 10. Bxb7 {[%clk 0:02:43.2]} 10... Rxb7 {[%clk 0:02:09.9]} 11. Ngf3
{[%clk 0:02:41]} 11... Nd5 {[%clk 0:02:06.6]} 12. Nb3 {[%clk 0:02:40.6]} 12...
Nxe3 {[%clk 0:02:04.6]} 13. Qxe3 {[%clk 0:02:40.1]} 13... Nb6 {[%clk 0:01:55.5]}
14. O-O {[%clk 0:02:34.8]} 14... Nc4 {[%clk 0:01:51.9]} 15. Qc1 {[%clk
0:02:27.6]} 15... Qd5 {[%clk 0:01:45.6]} 16. Nbd2 {[%clk 0:02:26.3]} 16... Nxd2
{[%clk 0:01:42.4]} 17. Qxd2 {[%clk 0:02:25.8]} 17... c5 {[%clk 0:01:41.3]} 18.
Rac1 {[%clk 0:02:19.1]} 18... Rd7 {[%clk 0:01:22.9]} 19. Qa5 {[%clk 0:02:17]}
19... cxd4 {[%clk 0:00:57.4]} 20. Rc8+ {[%clk 0:02:04.4]} 20... Ke7 {[%clk
0:00:39]} 21. Qxa6 {[%clk 0:01:56.4]} 21... g5 {[%clk 0:00:39.1]} 22. Rd1 {[%clk
0:01:53.9]} 22... Bg7 {[%clk 0:00:39.2]} 23. Rxh8 {[%clk 0:01:46.8]} 23... Bxh8
{[%clk 0:00:40.1]} 24. Qa3+ {[%clk 0:01:30.6]} 24... Ke8 {[%clk 0:00:34.4]} 25.
Qd3 {[%clk 0:01:30]} 25... g4 {[%clk 0:00:23.4]} 26. Nd2 {[%clk 0:01:27.5]}
26... f5 {[%clk 0:00:22.4]} 27. Nb3 {[%clk 0:01:24.5]} 27... h5 {[%clk
0:00:19.3]} 28. Qd2 {[%clk 0:01:23.3]} 28... Rh7 {[%clk 0:00:04.2]} 29. Qg5
{[%clk 0:01:22]} 29... Kf7 {[%clk 0:00:04.6]} 30. Rc1 {[%clk 0:01:20.8]} 30...
Qd7 {[%clk 0:00:02.8]} 31. Qf4 {[%clk 0:01:15.6]} 31... e5 {[%clk 0:00:01.8]}
32. Qd2 {[%clk 0:01:15.7]} 32... Bf6 {[%clk 0:00:00.1]} 33. Qa5 {[%clk
0:01:15.5]} 1-0

[Event "Late-Titled-Tuesday-Blitz-May-07-2024"]
[Site "Chess.com"]
[Date "2024.05.07"]
[Round "8"]
[White "Franmu14"]
[Black "sergiochess83"]
[Result "0-1"]
[WhiteElo "2742"]
[BlackElo "2898"]
[TimeControl "180+1"]
[EndTime "15:27:56 PDT"]
[Termination "sergiochess83 won by checkmate"]

1. e4 {[%clk 0:03:00.9]} 1... e6 {[%clk 0:02:56]} 2. Nc3 {[%clk 0:03:00.1]} 2...
d5 {[%clk 0:02:55.9]} 3. exd5 {[%clk 0:03:01]} 3... exd5 {[%clk 0:02:55.9]} 4.
d4 {[%clk 0:03:01.9]} 4... c6 {[%clk 0:02:53.3]} 5. Qf3 {[%clk 0:03:01]} 5...
Bd6 {[%clk 0:02:47.7]} 6. Bd3 {[%clk 0:03:00.3]} 6... Ne7 {[%clk 0:02:47.9]} 7.
Nge2 {[%clk 0:02:58.5]} 7... O-O {[%clk 0:02:47.5]} 8. Bf4 {[%clk 0:02:59.2]}
8... Re8 {[%clk 0:02:40.6]} 9. O-O-O {[%clk 0:02:59.1]} 9... b5 {[%clk
0:02:35.2]} 10. Bxd6 {[%clk 0:02:56]} 10... Qxd6 {[%clk 0:02:34.8]} 11. Nf4
{[%clk 0:02:56.7]} 11... b4 {[%clk 0:02:27.8]} 12. Nce2 {[%clk 0:02:55.3]} 12...
a5 {[%clk 0:02:24.4]} 13. h4 {[%clk 0:02:49.7]} 13... Nd7 {[%clk 0:02:21.5]} 14.
h5 {[%clk 0:02:36.3]} 14... Nf6 {[%clk 0:02:12]} 15. Qg3 {[%clk 0:02:24.3]}
15... h6 {[%clk 0:02:01]} 16. f3 {[%clk 0:02:08.8]} 16... a4 {[%clk 0:01:51.8]}
17. Nh3 {[%clk 0:02:00.8]} 17... Qd8 {[%clk 0:01:21.8]} 18. c4 {[%clk
0:01:42.7]} 18... Nf5 {[%clk 0:01:17.9]} 19. Bxf5 {[%clk 0:01:36.7]} 19... Bxf5
{[%clk 0:01:17.5]} 20. Nhf4 {[%clk 0:01:19.4]} 20... a3 {[%clk 0:01:14]} 21. b3
{[%clk 0:01:08.6]} 21... dxc4 {[%clk 0:01:13.8]} 22. bxc4 {[%clk 0:01:06.5]}
22... Qa5 {[%clk 0:01:04.2]} 23. Qe1 {[%clk 0:01:03.9]} 23... Qa4 {[%clk
0:00:52.8]} 24. Nd3 {[%clk 0:00:36.2]} 24... b3 {[%clk 0:00:43.2]} 25. Qc3
{[%clk 0:00:34.8]} 25... Rxe2 {[%clk 0:00:39]} 26. axb3 {[%clk 0:00:33.9]} 26...
Qa7 {[%clk 0:00:30.8]} 27. Rhe1 {[%clk 0:00:32.6]} 27... a2 {[%clk 0:00:28.1]}
28. Qa1 {[%clk 0:00:31.6]} 28... Qa3+ {[%clk 0:00:26.6]} 29. Nb2 {[%clk
0:00:31.6]} 29... Rc2# {[%clk 0:00:26.8]} 0-1

[Event "Late-Titled-Tuesday-Blitz-May-07-2024"]
[Site "Chess.com"]
[Date "2024.05.07"]
[Round "8"]
[White "Mops_2004"]
[Black "CarlosjPineror"]
[Result "1-0"]
[WhiteElo "2810"]
[BlackElo "2652"]
[TimeControl "180+1"]
[EndTime "15:27:57 PDT"]
[Termination "Mops_2004 won by resignation"]

1. Nf3 {[%clk 0:03:00.9]} 1... Nf6 {[%clk 0:02:59.5]} 2. g3 {[%clk 0:03:01.1]}
2... g6 {[%clk 0:02:59.5]} 3. d4 {[%clk 0:03:01.2]} 3... Bg7 {[%clk 0:02:59.2]}
4. Bg2 {[%clk 0:03:01.9]} 4... O-O {[%clk 0:02:58.8]} 5. O-O {[%clk 0:03:02.3]}
5... d6 {[%clk 0:02:59.7]} 6. Re1 {[%clk 0:03:02.3]} 6... c5 {[%clk 0:02:59.9]}
7. dxc5 {[%clk 0:02:59.1]} 7... dxc5 {[%clk 0:03:00.8]} 8. c3 {[%clk 0:02:59.7]}
8... Nc6 {[%clk 0:02:56.6]} 9. Qxd8 {[%clk 0:02:59.5]} 9... Rxd8 {[%clk
0:02:56.2]} 10. Be3 {[%clk 0:03:00.4]} 10... Nd7 {[%clk 0:02:37.6]} 11. Rd1
{[%clk 0:03:00.1]} 11... Re8 {[%clk 0:02:32.2]} 12. a4 {[%clk 0:02:59.1]} 12...
Rb8 {[%clk 0:02:14.7]} 13. Na3 {[%clk 0:02:43.4]} 13... b6 {[%clk 0:02:10.4]}
14. Nd2 {[%clk 0:02:33.4]} 14... Na5 {[%clk 0:02:03.3]} 15. Ndc4 {[%clk
0:02:12.6]} 15... Nxc4 {[%clk 0:02:02.1]} 16. Nxc4 {[%clk 0:02:13.5]} 16... Ba6
{[%clk 0:02:00.9]} 17. Rxd7 {[%clk 0:02:07.9]} 17... Bxc4 {[%clk 0:02:00.3]} 18.
Rxa7 {[%clk 0:01:55.3]} 18... Bxe2 {[%clk 0:02:00.2]} 19. Bc6 {[%clk 0:01:54.7]}
19... Rec8 {[%clk 0:01:55]} 20. Bb5 {[%clk 0:01:52.8]} 20... Bxb5 {[%clk
0:01:45.3]} 21. axb5 {[%clk 0:01:52.8]} 21... Bf6 {[%clk 0:01:43]} 22. Bf4
{[%clk 0:01:43.6]} 22... e5 {[%clk 0:01:42.7]} 23. Be3 {[%clk 0:01:44.1]} 23...
g5 {[%clk 0:01:31.8]} 24. g4 {[%clk 0:01:43.3]} 24... h5 {[%clk 0:01:28.9]} 25.
h3 {[%clk 0:01:42.7]} 25... hxg4 {[%clk 0:01:27.9]} 26. hxg4 {[%clk 0:01:43]}
26... Kg7 {[%clk 0:01:28.3]} 27. Kg2 {[%clk 0:01:42.8]} 27... Rd8 {[%clk
0:01:00.4]} 28. Kf3 {[%clk 0:01:37]} 28... c4 {[%clk 0:00:32.1]} 29. Rc7 {[%clk
0:01:31.2]} 29... Rd5 {[%clk 0:00:28.2]} 30. Raa7 {[%clk 0:01:30.6]} 30... Rf8
{[%clk 0:00:28.3]} 31. Bxb6 {[%clk 0:01:28.9]} 31... Rxb5 {[%clk 0:00:28.2]} 32.
Bc5 {[%clk 0:01:29.4]} 32... Rxc5 {[%clk 0:00:23.5]} 33. Rxc5 {[%clk 0:01:29.3]}
33... Rb8 {[%clk 0:00:24.2]} 34. Ra2 {[%clk 0:01:22.1]} 34... Be7 {[%clk
0:00:18]} 35. Rxc4 {[%clk 0:01:22.1]} 35... Rb7 {[%clk 0:00:17.8]} 36. Ke4
{[%clk 0:01:21.5]} 36... f6 {[%clk 0:00:17.2]} 37. Kf5 {[%clk 0:01:21.2]} 37...
Rd7 {[%clk 0:00:16.8]} 38. Ke6 {[%clk 0:01:19.6]} 38... Rb7 {[%clk 0:00:17]} 39.
b4 {[%clk 0:01:18.3]} 39... Kf8 {[%clk 0:00:17.1]} 40. Ra8+ {[%clk 0:01:17.8]}
40... Kg7 {[%clk 0:00:16.9]} 41. Rac8 {[%clk 0:01:15.4]} 1-0

[Event "Late-Titled-Tuesday-Blitz-May-07-2024"]
[Site "Chess.com"]
[Date "2024.05.07"]
[Round "8"]
[White "martinmena"]
[Black "A4RookA3"]
[Result "0-1"]
[WhiteElo "2131"]
[BlackElo "2431"]
[TimeControl "180+1"]
[EndTime "15:28:01 PDT"]
[Termination "A4RookA3 won on time"]

1. c4 {[%clk 0:03:00.9]} 1... g6 {[%clk 0:02:40.9]} 2. g3 {[%clk 0:02:59.7]}
2... Bg7 {[%clk 0:02:41.1]} 3. Bg2 {[%clk 0:02:59.7]} 3... c5 {[%clk 0:02:41.7]}
4. Nc3 {[%clk 0:02:59.1]} 4... Nc6 {[%clk 0:02:42.3]} 5. e4 {[%clk 0:02:59.3]}
5... Nf6 {[%clk 0:02:38.4]} 6. Nge2 {[%clk 0:02:56.6]} 6... O-O {[%clk
0:02:38.6]} 7. O-O {[%clk 0:02:55.9]} 7... d6 {[%clk 0:02:33.5]} 8. d3 {[%clk
0:02:54.9]} 8... Ne8 {[%clk 0:02:28.4]} 9. Be3 {[%clk 0:02:52.6]} 9... Nc7
{[%clk 0:02:26.1]} 10. Qd2 {[%clk 0:02:49.1]} 10... Rb8 {[%clk 0:02:24.4]} 11.
Bh6 {[%clk 0:02:47.9]} 11... Bxh6 {[%clk 0:02:16.9]} 12. Qxh6 {[%clk 0:02:48.8]}
12... a6 {[%clk 0:02:11.6]} 13. f4 {[%clk 0:02:25.1]} 13... f5 {[%clk
0:01:58.8]} 14. h4 {[%clk 0:02:18.4]} 14... e5 {[%clk 0:01:47.3]} 15. h5 {[%clk
0:02:00.8]} 15... Qf6 {[%clk 0:01:30.7]} 16. hxg6 {[%clk 0:01:26.5]} 16... Qxg6
{[%clk 0:01:31.6]} 17. Qxg6+ {[%clk 0:01:23]} 17... hxg6 {[%clk 0:01:32.5]} 18.
Nd5 {[%clk 0:01:21.4]} 18... Nxd5 {[%clk 0:01:28]} 19. exd5 {[%clk 0:01:13.9]}
19... Nb4 {[%clk 0:01:17.2]} 20. Rfd1 {[%clk 0:00:15.1]} 20... Re8 {[%clk
0:01:02.5]} 21. Rd2 {[%clk 0:00:09.6]} 21... e4 {[%clk 0:00:55.5]} 22. d4 {[%clk
0:00:03.6]} 22... Nd3 {[%clk 0:00:48.8]} 23. dxc5 {[%clk 0:00:02.2]} 23... Nxc5
{[%clk 0:00:49.7]} 24. b3 {[%clk 0:00:01.1]} 24... Nd3 {[%clk 0:00:50.5]} 25.
Rad1 {[%clk 0:00:00.8]} 25... Nb4 {[%clk 0:00:51]} 0-1

[Event "Late-Titled-Tuesday-Blitz-May-07-2024"]
[Site "Chess.com"]
[Date "2024.05.07"]
[Round "8"]
[White "GM_dmitrij"]
[Black "Rodalquilar"]
[Result "1-0"]
[WhiteElo "3035"]
[BlackElo "2782"]
[TimeControl "180+1"]
[EndTime "15:28:04 PDT"]
[Termination "GM_dmitrij won on time"]

1. e4 {[%clk 0:03:00.9]} 1... d5 {[%clk 0:03:00.2]} 2. exd5 {[%clk 0:02:57.4]}
2... Qxd5 {[%clk 0:03:01.1]} 3. Nc3 {[%clk 0:02:57.3]} 3... Qa5 {[%clk
0:03:01.2]} 4. d4 {[%clk 0:02:57.5]} 4... Nf6 {[%clk 0:03:01.8]} 5. Nf3 {[%clk
0:02:51.4]} 5... Bf5 {[%clk 0:03:02]} 6. Bd2 {[%clk 0:02:50.6]} 6... e6 {[%clk
0:03:01.9]} 7. Bc4 {[%clk 0:02:46.7]} 7... Bb4 {[%clk 0:03:01.6]} 8. a3 {[%clk
0:02:38.7]} 8... Bxc3 {[%clk 0:03:01.8]} 9. Bxc3 {[%clk 0:02:39.6]} 9... Qb6
{[%clk 0:03:02.2]} 10. O-O {[%clk 0:02:32.4]} 10... Nc6 {[%clk 0:03:01.3]} 11.
d5 {[%clk 0:02:32.2]} 11... O-O-O {[%clk 0:03:00.8]} 12. Nh4 {[%clk 0:02:03.1]}
12... Be4 {[%clk 0:02:54.8]} 13. Bxf6 {[%clk 0:01:59]} 13... gxf6 {[%clk
0:02:54.1]} 14. Qh5 {[%clk 0:01:59.2]} 14... Bg6 {[%clk 0:02:50.7]} 15. Qe2
{[%clk 0:01:29.8]} 15... Nd4 {[%clk 0:02:21.1]} 16. Qd2 {[%clk 0:01:28.9]} 16...
Qc5 {[%clk 0:01:53.4]} 17. Ba2 {[%clk 0:01:21.4]} 17... exd5 {[%clk 0:01:45.8]}
18. b4 {[%clk 0:01:19.4]} 18... Qb6 {[%clk 0:01:44.2]} 19. Rad1 {[%clk
0:01:14.1]} 19... Nf5 {[%clk 0:01:14.1]} 20. Nxf5 {[%clk 0:01:12.4]} 20... Bxf5
{[%clk 0:01:15]} 21. Qf4 {[%clk 0:00:50.8]} 21... Bxc2 {[%clk 0:01:11.3]} 22.
Rxd5 {[%clk 0:00:49.5]} 22... Rxd5 {[%clk 0:01:07.2]} 23. Bxd5 {[%clk
0:00:50.4]} 23... Rd8 {[%clk 0:01:04.3]} 24. Bxf7 {[%clk 0:00:50]} 24... Qd4
{[%clk 0:00:51.9]} 25. Qg3 {[%clk 0:00:42.6]} 1-0

[Event "Late-Titled-Tuesday-Blitz-May-07-2024"]
[Site "Chess.com"]
[Date "2024.05.07"]
[Round "8"]
[White "Durarbayli"]
[Black "ReadySkate"]
[Result "1-0"]
[WhiteElo "2934"]
[BlackElo "2711"]
[TimeControl "180+1"]
[EndTime "15:28:07 PDT"]
[Termination "Durarbayli won by resignation"]

1. e4 {[%clk 0:03:00.9]} 1... c5 {[%clk 0:02:57.3]} 2. Nf3 {[%clk 0:03:00]} 2...
d6 {[%clk 0:02:57.7]} 3. d4 {[%clk 0:03:00.6]} 3... cxd4 {[%clk 0:02:58.6]} 4.
Nxd4 {[%clk 0:03:00.7]} 4... Nf6 {[%clk 0:02:59.1]} 5. Nc3 {[%clk 0:03:01.3]}
5... a6 {[%clk 0:02:59.3]} 6. h4 {[%clk 0:03:01.3]} 6... e5 {[%clk 0:02:59.6]}
7. Nb3 {[%clk 0:03:01.2]} 7... h6 {[%clk 0:03:00]} 8. Be2 {[%clk 0:02:58.3]}
8... Be6 {[%clk 0:03:00.3]} 9. f4 {[%clk 0:02:58.4]} 9... exf4 {[%clk
0:02:59.8]} 10. Bxf4 {[%clk 0:02:59.3]} 10... Nc6 {[%clk 0:03:00.3]} 11. Qd2
{[%clk 0:02:59.4]} 11... Be7 {[%clk 0:02:59.9]} 12. O-O-O {[%clk 0:02:59.5]}
12... O-O {[%clk 0:02:57.9]} 13. g4 {[%clk 0:02:57.1]} 13... Bxg4 {[%clk
0:02:48.6]} 14. h5 {[%clk 0:02:34.3]} 14... Bxe2 {[%clk 0:02:44.2]} 15. Qxe2
{[%clk 0:02:33.2]} 15... Qc8 {[%clk 0:02:42.2]} 16. Rhg1 {[%clk 0:02:25.3]}
16... Kh8 {[%clk 0:02:40.9]} 17. Bxd6 {[%clk 0:02:08.8]} 17... Bxd6 {[%clk
0:02:25.3]} 18. Rxd6 {[%clk 0:02:09.7]} 18... Nh7 {[%clk 0:02:25.5]} 19. Nc5
{[%clk 0:01:43.8]} 19... Ng5 {[%clk 0:02:06.8]} 20. Qe3 {[%clk 0:01:35.1]} 20...
Ne5 {[%clk 0:02:02.7]} 21. Rd5 {[%clk 0:01:23]} 21... Nc4 {[%clk 0:01:55.2]} 22.
Qd4 {[%clk 0:01:17.4]} 22... Nb6 {[%clk 0:01:47.7]} 23. Rd6 {[%clk 0:01:05.5]}
23... Rd8 {[%clk 0:01:05.5]} 24. Rxh6+ {[%clk 0:00:46.3]} 24... Kg8 {[%clk
0:01:04.4]} 25. Rd6 {[%clk 0:00:43]} 25... Qc7 {[%clk 0:00:37]} 26. Rxg5 {[%clk
0:00:39.4]} 26... f6 {[%clk 0:00:36.1]} 27. Rxg7+ {[%clk 0:00:37.8]} 27... Qxg7
{[%clk 0:00:28.2]} 28. Rxd8+ {[%clk 0:00:36.6]} 28... Kh7 {[%clk 0:00:28.4]} 29.
Rxa8 {[%clk 0:00:32.9]} 29... Nxa8 {[%clk 0:00:28.4]} 30. b3 {[%clk 0:00:31.5]}
30... Nc7 {[%clk 0:00:26.9]} 31. Nd5 {[%clk 0:00:30.2]} 31... f5 {[%clk
0:00:26.3]} 32. Qxg7+ {[%clk 0:00:29.3]} 1-0

[Event "Late-Titled-Tuesday-Blitz-May-07-2024"]
[Site "Chess.com"]
[Date "2024.05.07"]
[Round "8"]
[White "giomar27"]
[Black "StellarChess"]
[Result "0-1"]
[WhiteElo "2469"]
[BlackElo "2618"]
[TimeControl "180+1"]
[EndTime "15:28:16 PDT"]
[Termination "StellarChess won by resignation"]

1. Nc3 {[%clk 0:03:00.9]} 1... e5 {[%clk 0:02:58.2]} 2. Nf3 {[%clk 0:03:00.2]}
2... Nc6 {[%clk 0:02:54.5]} 3. d4 {[%clk 0:03:00.5]} 3... exd4 {[%clk
0:02:54.3]} 4. Nxd4 {[%clk 0:03:01.4]} 4... Nf6 {[%clk 0:02:54]} 5. Bg5 {[%clk
0:03:00.9]} 5... h6 {[%clk 0:02:52.3]} 6. Bh4 {[%clk 0:02:58.8]} 6... Bb4 {[%clk
0:02:51.6]} 7. Nxc6 {[%clk 0:02:52.9]} 7... bxc6 {[%clk 0:02:50.7]} 8. Qd4
{[%clk 0:02:52.4]} 8... Be7 {[%clk 0:02:39.3]} 9. e4 {[%clk 0:02:51.8]} 9... O-O
{[%clk 0:02:37.6]} 10. Bc4 {[%clk 0:02:49]} 10... d5 {[%clk 0:02:32.7]} 11. exd5
{[%clk 0:02:45.9]} 11... cxd5 {[%clk 0:02:31.8]} 12. Bb3 {[%clk 0:02:46]} 12...
c5 {[%clk 0:02:27.6]} 13. Qd2 {[%clk 0:02:40.7]} 13... d4 {[%clk 0:02:19.1]} 14.
Bxf6 {[%clk 0:02:39.8]} 14... Bxf6 {[%clk 0:02:16.1]} 15. Nd5 {[%clk 0:02:40.1]}
15... Re8+ {[%clk 0:02:16]} 16. Kf1 {[%clk 0:02:40.1]} 16... Ba6+ {[%clk
0:02:16]} 17. Kg1 {[%clk 0:02:40]} 17... d3 {[%clk 0:02:08.1]} 18. c4 {[%clk
0:02:32]} 18... Re2 {[%clk 0:02:01.2]} 19. Qxd3 {[%clk 0:02:31.9]} 19... Rxb2
{[%clk 0:02:00.2]} 20. Re1 {[%clk 0:02:28.6]} 20... Bd4 {[%clk 0:01:57.2]} 21.
Bc2 {[%clk 0:02:22.2]} 21... g6 {[%clk 0:01:41.6]} 22. Ne7+ {[%clk 0:02:20.4]}
22... Kg7 {[%clk 0:01:36.4]} 23. Nxg6 {[%clk 0:02:20]} 23... Rxc2 {[%clk
0:01:30.8]} 24. Qxc2 {[%clk 0:02:06.7]} 24... fxg6 {[%clk 0:01:29.3]} 25. h4
{[%clk 0:02:03.9]} 25... Qf6 {[%clk 0:01:28.1]} 26. h5 {[%clk 0:02:03.5]} 26...
Rf8 {[%clk 0:01:23.3]} 27. Re2 {[%clk 0:02:03]} 27... g5 {[%clk 0:01:04.7]} 28.
Rh3 {[%clk 0:02:02.6]} 28... Bb7 {[%clk 0:00:57.5]} 29. Rb3 {[%clk 0:02:01.3]}
29... Bc6 {[%clk 0:00:54.1]} 30. Ra3 {[%clk 0:02:01]} 30... Rf7 {[%clk
0:00:50.1]} 31. Ra6 {[%clk 0:01:48.7]} 31... Rc7 {[%clk 0:00:38.1]} 32. Ra3
{[%clk 0:01:40.6]} 32... Rb7 {[%clk 0:00:23.4]} 33. Ra6 {[%clk 0:01:39.9]} 33...
Rc7 {[%clk 0:00:16.2]} 34. Qd2 {[%clk 0:01:39]} 34... g4 {[%clk 0:00:12.1]} 35.
Qa5 {[%clk 0:01:37.8]} 35... Rd7 {[%clk 0:00:09.5]} 36. Rxa7 {[%clk 0:01:36.5]}
36... g3 {[%clk 0:00:08.3]} 37. Rxd7+ {[%clk 0:01:36.1]} 37... Bxd7 {[%clk
0:00:09.2]} 38. Qc7 {[%clk 0:01:34.5]} 38... gxf2+ {[%clk 0:00:09.5]} 39. Kf1
{[%clk 0:01:34.5]} 39... Qf7 {[%clk 0:00:07.3]} 40. Qg3+ {[%clk 0:01:25.4]}
40... Kh7 {[%clk 0:00:05.4]} 41. Qd3+ {[%clk 0:01:24.8]} 41... Bf5 {[%clk
0:00:05.4]} 42. Qf3 {[%clk 0:01:24.7]} 42... Kg7 {[%clk 0:00:03.8]} 43. g4
{[%clk 0:01:22.9]} 43... Bd7 {[%clk 0:00:02.1]} 44. Qb7 {[%clk 0:01:20.2]} 44...
Bxg4 {[%clk 0:00:02]} 45. Re7 {[%clk 0:01:18.9]} 45... Bh3+ {[%clk 0:00:02.4]}
46. Ke2 {[%clk 0:01:17.1]} 46... f1=Q+ {[%clk 0:00:03.3]} 47. Kd2 {[%clk
0:01:18]} 47... Qf6 {[%clk 0:00:03.5]} 48. Rxf7+ {[%clk 0:01:16.8]} 48... Qxf7
{[%clk 0:00:04.4]} 49. Qg2+ {[%clk 0:01:16.6]} 0-1